Cogmind - Beta 13 @@@ ROGUE MODE // 2024.04.26 @ 22:54:33 Player: Cwaftwer Result: Destroyed by S-27 Virus with Autogun Performance ------------- Evolutions (5) 2500 Regions Visited (8) 1600 Robots Destroyed (0) 0 Value Destroyed (0) 0 Prototype IDs (5) 100 Alien Tech Used (0) 0 Bonus (1717) 1717 TOTAL SCORE: 5917 Bonus ------- Pacifist 1717 Cogmind --------- Core Integrity 0/1000 Matter 222/300 Energy 100/100 System Corruption 0% Temperature Cool (0) Movement Core (50) Location -5/Upper Caves Parts ------- > --- POWER (1) -------- (None) > --- PROPULSION (2) --- (None) > --- UTILITY (12) ----- Improved Targeting Computer Armor Integrity Analyzer > --- WEAPON (2) ------- Scythe > --- INVENTORY (5) ---- System Restoration Module Plasma Cutter Peak State ------------ > --- POWER ------------ (None) > --- PROPULSION ------- (None) > --- UTILITY ---------- Improved Targeting Computer Advanced Targeting Computer Improved Melee Analysis Suite Improved Melee Analysis Suite Armor Integrity Analyzer Improved Focal Shield Advanced Hacking Suite > --- WEAPON ----------- (None) > --- INVENTORY -------- System Restoration Module Plasma Cutter Scythe [Rating: 29] Favorites ----------- Power Enhanced Nuclear Core Power Core Enhanced Nuclear Core Propulsion None Utility Improved Targeting Computer Device Improved Trap Extractor Processor Improved Targeting Computer Hackware Advanced Hacking Suite Protection Improved Utility Shielding Weapon Assault Rifle Ballistic Gun Assault Rifle Impact Weapon Hammer Slashing Weapon Scythe Build | -11 -10 -10 -10 -8 -7 -6 -5 -5 ------- Run | Yrd Mat Min Sub Mat Fac Fac Fac Upp Slots Evolved 10 | . . . . 4 2 2 2 . Power . | . . . . . . . . . Propulsion . | . . . . . . . . . Utility 10 | . . . . 4 2 2 2 . Weapon . | . . . . . . . . . Parts Attached 25 | 1 3 2 1 3 5 4 4 2 Power 1 | . . . . . 1 . . . Engine . | . . . . . . . . . Core 1 | . . . . . 1 . . . Reactor . | . . . . . . . . . Propulsion . | . . . . . . . . . Treads . | . . . . . . . . . Leg . | . . . . . . . . . Wheel . | . . . . . . . . . Hover . | . . . . . . . . . Flight . | . . . . . . . . . Utility 19 | . 3 2 . 3 3 3 4 1 Device 7 | . 1 2 . 1 . 1 1 1 Storage . | . . . . . . . . . Processor 9 | . 2 . . 1 3 1 2 . Hackware 1 | . . . . . . . 1 . Protection 2 | . . . . 1 . 1 . . Artifact . | . . . . . . . . . Weapon 5 | 1 . . 1 . 1 1 . 1 Energy Gun . | . . . . . . . . . Energy Cannon . | . . . . . . . . . Ballistic Gun 1 | 1 . . . . . . . . Ballistic Cannon . | . . . . . . . . . Launcher . | . . . . . . . . . Special Weapon . | . . . . . . . . . Impact Weapon 2 | . . . 1 . . 1 . . Slashing Weapon 2 | . . . . . 1 . . 1 Piercing Weapon . | . . . . . . . . . Special Melee Weapon . | . . . . . . . . . Unidentified Prototypes 2 | . . 1 . . 1 . . . Parts Lost 12 | . . . . . 1 4 2 5 Power . | . . . . . . . . . Propulsion . | . . . . . . . . . Utility 11 | . . . . . 1 3 2 5 Weapon 1 | . . . . . . 1 . . Highest Loss Streak 5 | . . . . . 1 4 2 5 To Critical Strikes . | . . . . . . . . . Average Slot Usage (%) 34 | . 28 42 42 26 34 33 32 34 Device 6 | . 6 14 14 9 7 3 1 . Processor 21 | . 7 14 14 14 26 26 23 28 Ballistic Gun 3 | . 14 14 7 . . . . . Naked Turns . | . . . . . . . . . Heaviest Build 5 | 2 3 3 3 5 5 3 3 2 Greatest Support 3 | 3 3 3 3 3 3 3 3 3 Greatest Overweight (x) 1 | . . . . 1 1 . . . Average Overweight (x) . | . . . . . . . . . Largest Inventory Capacity 5 | 5 5 5 5 5 5 5 5 5 Average Capacity 5 | 5 5 5 5 5 5 5 5 5 Most Carried 5 | 1 5 5 5 5 5 5 4 4 Average Carried 4 | . 2 4 5 4 4 4 3 3 Final Capacity 5 | 5 5 5 5 5 5 5 5 5 Final Carried 5 | 1 5 5 5 4 5 3 4 2 Class Distribution -------------------- 100% | Mutant Dominant Class ---------------- Mutant | -10/Materials Mutant | -10/Mines Mutant | -10/Subcaves Mutant | -8/Materials Mutant | -7/Factory Mutant | -6/Factory Mutant | -5/Factory Mutant | -5/Upper Caves Resources | -11 -10 -10 -10 -8 -7 -6 -5 -5 ----------- Run | Yrd Mat Min Sub Mat Fac Fac Fac Upp Matter Collected 312 | 210 . . 50 . . . 29 23 Remotely . | . . . . . . . . . Salvage Created . | . . . . . . . . . Parts . | . . . . . . . . . Haulers Intercepted . | . . . . . . . . . Recyclers Shooed . | . . . . . . . . . Parts Field Recycled . | . . . . . . . . . Retrieved Matter . | . . . . . . . . . Parts Self-Destructed . | . . . . . . . . . Prevented . | . . . . . . . . . Kills | -11 -10 -10 -10 -8 -7 -6 -5 -5 ------- Run | Yrd Mat Min Sub Mat Fac Fac Fac Upp Combat Hostiles Destroyed . | . . . . . . . . . Classes Destroyed . | . . . . . . . . . Best Kill Streak . | . . . . . . . . . Combat Bots Only . | . . . . . . . . . Max Kills in Single Turn . | . . . . . . . . . Gunslinging . | . . . . . . . . . Exploded . | . . . . . . . . . Melee . | . . . . . . . . . Uniques/NPCs Destroyed . | . . . . . . . . . Combat | -11 -10 -10 -10 -8 -7 -6 -5 -5 -------- Run | Yrd Mat Min Sub Mat Fac Fac Fac Upp Hostile Shots Fired 362 | . 21 . . 73 91 86 25 66 Missed 149 | . 7 . . 26 50 32 10 24 Damage Taken 3588 | . 120 . . 515 671 986 713 583 Core 2914 | . 59 . . 477 573 797 538 470 Absorbed by Shields . | . . . . . . . . . Redirected to Shielding 134 | . . . . 19 . . 115 . Ignored by Resistances 42 | . . . . . . . . 42 Core Remaining (%) 42 | 100 . . 76 13 18 6 . . Volleys Fired . | . . . . . . . . . Largest . | . . . . . . . . . Hottest . | . . . . . . . . . Shots Fired . | . . . . . . . . . Gun . | . . . . . . . . . Cannon . | . . . . . . . . . Launcher . | . . . . . . . . . Special . | . . . . . . . . . Kinetic . | . . . . . . . . . Thermal . | . . . . . . . . . Explosive . | . . . . . . . . . Electromagnetic . | . . . . . . . . . Robot Hit Streak . | . . . . . . . . . Robot Miss Streak . | . . . . . . . . . Penetration Max . | . . . . . . . . . Secondary Targets . | . . . . . . . . . Shots Hit Robots . | . . . . . . . . . Core Hits . | . . . . . . . . . Critical Kills . | . . . . . . . . . Critical Parts Destroyed . | . . . . . . . . . Critical Strikes . | . . . . . . . . . Melee Attacks 5 | . . . 3 . 1 . . 1 Impact 3 | . . . 3 . . . . . Slashing 2 | . . . . . 1 . . 1 Piercing . | . . . . . . . . . Sneak Attacks . | . . . . . . . . . Combat Hostiles . | . . . . . . . . . Follow-up Attacks . | . . . . . . . . . Damage Inflicted . | . . . . . . . . . Guns . | . . . . . . . . . Cannons . | . . . . . . . . . Explosions . | . . . . . . . . . Melee . | . . . . . . . . . Ramming . | . . . . . . . . . Kinetic . | . . . . . . . . . Thermal . | . . . . . . . . . Explosive . | . . . . . . . . . Electromagnetic . | . . . . . . . . . Impact . | . . . . . . . . . Slashing . | . . . . . . . . . Piercing . | . . . . . . . . . Highest Corruption 2 | . . . . . 2 . . . Average Corruption 1 | . . . . . 1 . . . Corruption Purged . | . . . . . . . . . Corruption Blocked . | . . . . . . . . . Effects 4 | . . . . . 4 . . . Message Errors 2 | . . . . . 2 . . . Data Loss (minor) 2 | . . . . . 2 . . . Overload Shots . | . . . . . . . . . Overflow Damage . | . . . . . . . . . Projectiles . | . . . . . . . . . Explosions . | . . . . . . . . . Melee . | . . . . . . . . . Knockbacks . | . . . . . . . . . Impact . | . . . . . . . . . Kinetic . | . . . . . . . . . Secondary . | . . . . . . . . . Self-Inflicted Damage . | . . . . . . . . . Shots . | . . . . . . . . . Rammed . | . . . . . . . . . Targets Rammed . | . . . . . . . . . Kicked . | . . . . . . . . . Crushed . | . . . . . . . . . Highest Temperature 314 | . . . . . 314 . 5 . Average Temperature 146 | . . . . . 161 . 5 . Received Heat Transfer 339 | . 18 . . 72 36 99 105 9 Siege Activations . | . . . . . . . . . Robots Corrupted . | . . . . . . . . . Combat Hostiles . | . . . . . . . . . Parts Fried . | . . . . . . . . . Impact Corruptions . | . . . . . . . . . Robots Melted . | . . . . . . . . . Combat Hostiles . | . . . . . . . . . Parts Melted . | . . . . . . . . . Heat Transferred . | . . . . . . . . . Parts Sabotaged . | . . . . . . . . . Parts Stolen . | . . . . . . . . . Parts Stripped . | . . . . . . . . . Power Chain Reactions . | . . . . . . . . . Alert | -11 -10 -10 -10 -8 -7 -6 -5 -5 ------- Run | Yrd Mat Min Sub Mat Fac Fac Fac Upp Peak Influence 320 | . 69 26 . 143 166 312 320 . Initial 152 | . . 26 . 5 64 76 152 . Average 71 | . 20 26 . 77 41 95 224 . Maximum Alert Level 1 | . . . . . . 1 1 . Low Security (%) 91 | 100 100 100 . 100 100 90 36 . Level 1 8 | . . . . . . 9 63 . Level 2 . | . . . . . . . . . Level 3 . | . . . . . . . . . Level 4 . | . . . . . . . . . Level 5 . | . . . . . . . . . High Security . | . . . . . . . . . Max Security . | . . . . . . . . . Squads Dispatched 14 | . 2 . . 3 5 1 3 . Investigation 7 | . 1 . . . 3 1 2 . Extermination 1 | . . . . . 1 . . . Reinforcement 6 | . 1 . . 3 1 . 1 . Assault . | . . . . . . . . . Garrison . | . . . . . . . . . Intercept . | . . . . . . . . . Searches Triggered . | . . . . . . . . . Construction Impeded . | . . . . . . . . . Haulers Reinforced . | . . . . . . . . . Active Scanning Responses . | . . . . . . . . . Cargo Convoy Interrupts . | . . . . . . . . . Stealth | -11 -10 -10 -10 -8 -7 -6 -5 -5 --------- Run | Yrd Mat Min Sub Mat Fac Fac Fac Upp Distress Signals 2 | . . . . 2 . . . . Communications Jammed . | . . . . . . . . . Distress Signals . | . . . . . . . . . Times Spotted 90 | . 9 . . 12 25 23 12 9 Peak Tracking Total 14 | . 7 . . 6 10 14 12 5 Tactical Retreats 21 | . 2 . . 3 5 5 5 1 Traps | -11 -10 -10 -10 -8 -7 -6 -5 -5 ------- Run | Yrd Mat Min Sub Mat Fac Fac Fac Upp Traps Triggered 1 | . . . . . . . 1 . Indirectly . | . . . . . . . . . Trap Hack Attempts . | . . . . . . . . . Triggered . | . . . . . . . . . Disarmed . | . . . . . . . . . Reprogrammed . | . . . . . . . . . Reused . | . . . . . . . . . Traps Extracted . | . . . . . . . . . Installed . | . . . . . . . . . Triggered . | . . . . . . . . . Machines | -11 -10 -10 -10 -8 -7 -6 -5 -5 ---------- Run | Yrd Mat Min Sub Mat Fac Fac Fac Upp Machines Disabled . | . . . . . . . . . Max in Single Turn . | . . . . . . . . . Machines Repaired . | . . . . . . . . . Machines Dismantled . | . . . . . . . . . Machines Sabotaged . | . . . . . . . . . Overloaded Fab Kills . | . . . . . . . . . Hacking | -11 -10 -10 -10 -8 -7 -6 -5 -5 --------- Run | Yrd Mat Min Sub Mat Fac Fac Fac Upp Machines Accessed 16 | . 3 . . 3 5 2 3 . Terminals 11 | . 3 . . 2 3 . 3 . Fabricators 4 | . . . . . 2 2 . . Repair Stations . | . . . . . . . . . Recycling Units . | . . . . . . . . . Scanalyzers 1 | . . . . 1 . . . . Garrison Access . | . . . . . . . . . Total Hacks 46 | . 8 . . 12 11 6 9 . Successful 21 | . 4 . . 6 4 4 3 . Failed 25 | . 4 . . 6 7 2 6 . Catastrophic 6 | . . . . 1 3 . 2 . Database Lockouts . | . . . . . . . . . Manual . | . . . . . . . . . Terminals 32 | . 8 . . 7 8 . 9 . Fabricators 9 | . . . . . 3 6 . . Repair Stations . | . . . . . . . . . Recycling Units . | . . . . . . . . . Scanalyzers 5 | . . . . 5 . . . . Garrison Access . | . . . . . . . . . Terminal Hacks 12 | . 4 . . 3 2 . 3 . Record 4 | . 1 . . 2 1 . . . Robot Analysis 1 | . 1 . . . . . . . Prototype ID Bank 2 | . 1 . . 1 . . . . Unreport Threat 1 | . . . . . 1 . . . Recall Assault 1 | . . . . . . . 1 . Zone Layout 3 | . 1 . . . . . 2 . Fabricator Hacks 6 | . . . . . 2 4 . . Network Status 1 | . . . . . . 1 . . Load Schematic 2 | . . . . . 1 1 . . Build 3 | . . . . . 1 2 . . Repair Station Hacks . | . . . . . . . . . Recycling Unit Hacks . | . . . . . . . . . Scanalyzer 3 | . . . . 3 . . . . Insert Component 2 | . . . . 2 . . . . Analyze 1 | . . . . 1 . . . . Garrison Access Hacks . | . . . . . . . . . Unauthorized Hacks . | . . . . . . . . . Terminals . | . . . . . . . . . Fabricators . | . . . . . . . . . Repair Stations . | . . . . . . . . . Recycling Units . | . . . . . . . . . Scanalyzers . | . . . . . . . . . Garrison Access . | . . . . . . . . . Data Cores Recovered . | . . . . . . . . . Used . | . . . . . . . . . Hacking Detections 15 | . 3 . . 3 5 2 2 . Full Trace Events 6 | . 1 . . . 3 1 1 . Feedback Events . | . . . . . . . . . Feedback Blocked . | . . . . . . . . . Robot Schematics Acquired . | . . . . . . . . . Robots Built 3 | . . . . . . 3 . . Authchips . | . . . . . . . . . Time 116 | . . . . . . 116 . . Total Robot Build Rating 9 | . . . . . . 9 . . Part Schematics Acquired 1 | . . . . 1 . . . . Parts Built 4 | . . . . . 2 2 . . Authchips . | . . . . . . . . . Time 76 | . . . . . 25 51 . . Total Part Build Rating 4 | . . . . . 2 2 . . Parts Repaired . | . . . . . . . . . Time . | . . . . . . . . . Parts Recycled . | . . . . . . . . . Recycled Matter . | . . . . . . . . . Retrieved Matter . | . . . . . . . . . Retrieved Components . | . . . . . . . . . Parts Scanalyzed 2 | . . . . 2 . . . . Part Schematics Acquired 1 | . . . . 1 . . . . Parts Damaged 1 | . . . . 1 . . . . Bothacking | -11 -10 -10 -10 -8 -7 -6 -5 -5 ------------ Run | Yrd Mat Min Sub Mat Fac Fac Fac Upp Used RIF Installer . | . . . . . . . . . Robots Hacked . | . . . . . . . . . Non-combat . | . . . . . . . . . Combat . | . . . . . . . . . Robot Hacks Applied . | . . . . . . . . . Relay Couplers Released . | . . . . . . . . . Fabnet Peak Effective % . | . . . . . . . . . Robots Rewired . | . . . . . . . . . Allies Hacked . | . . . . . . . . . Hacks Repelled . | . . . . . . . . . Allies | -11 -10 -10 -10 -8 -7 -6 -5 -5 -------- Run | Yrd Mat Min Sub Mat Fac Fac Fac Upp Total Allies 3 | . . . . . . 3 . . Largest Group 3 | . . . . . . 3 . . Highest-Rated Group 48 | . . . . . . 48 . . Highest-Rated Ally 16 | . . . . . . 16 . . Total Orders . | . . . . . . . . . Ally Attacks 5 | . . . . . . 5 . . Total Damage 56 | . . . . . . 56 . . Kills . | . . . . . . . . . Allies Corrupted . | . . . . . . . . . Allies Melted . | . . . . . . . . . Intel | -11 -10 -10 -10 -8 -7 -6 -5 -5 ------- Run | Yrd Mat Min Sub Mat Fac Fac Fac Upp Robot Analysis Total 1 | . 1 . . . . . . . Derelict Logs Recovered 4 | . . . 3 . . . . 1 Drone Launches . | . . . . . . . . . Drone Recoveries . | . . . . . . . . . Exploration | -11 -10 -10 -10 -8 -7 -6 -5 -5 ------------- Run | Yrd Mat Min Sub Mat Fac Fac Fac Upp Turns Passed 2076 | 19 117 303 97 196 569 351 185 239 Spaces Moved 2812 | 32 210 46 174 209 954 376 342 469 Core 2812 | 32 210 46 174 209 954 376 342 469 Treads . | . . . . . . . . . Legs . | . . . . . . . . . Wheels . | . . . . . . . . . Hover . | . . . . . . . . . Flight . | . . . . . . . . . Fastest Speed 50 | 50 50 50 50 50 50 50 50 50 Average Speed 50 | 50 50 50 50 58 50 50 50 50 Slowest Speed 100 | 50 50 50 50 100 100 50 50 50 Overloaded Moves . | . . . . . . . . . Propulsion Burnouts . | . . . . . . . . . Robots Hopped . | . . . . . . . . . Cave-ins Triggered . | . . . . . . . . . Exploration Rate (%) 23 | 3 41 17 17 30 31 15 10 44 Regions Visited 8 Branch Regions 3 Pre-discovered Areas 1 | . . . 1 . . . . . Known Exits Taken 1 | . . . . 1 . . . . Unknown Exits Taken 7 | 1 1 1 1 . 1 1 1 . Scrap Searched 5 | . . . 4 . . . . 1 Spaces Dug 2 | . . . . . 1 . . 1 Terrain Destroyed 2 | . . . . . 1 . . 1 Melee 2 | . . . . . 1 . . 1 Projectile . | . . . . . . . . . AOE . | . . . . . . . . . Terrain Rammed . | . . . . . . . . . Walls Destroyed . | . . . . . . . . . Machines Disabled . | . . . . . . . . . Actions | -11 -10 -10 -10 -8 -7 -6 -5 -5 --------- Run | Yrd Mat Min Sub Mat Fac Fac Fac Upp Total 3445 | 34 221 324 177 284 1039 539 355 472 Wait 560 | . . 275 . 64 61 155 5 . Move 2804 | 31 209 45 173 208 953 375 341 469 Hop . | . . . . . . . . . Pick Up 33 | 2 8 1 . 4 10 3 5 . Fast Attach . | . . . . . . . . . Attach 21 | 1 2 . . 3 5 4 4 2 Detach 3 | . . . . 1 2 . . . Swap 4 | . 1 2 1 . . . . . Drop 15 | . 1 1 . 4 7 2 . . Fire . | . . . . . . . . . Melee 5 | . . . 3 . 1 . . 1 Ram . | . . . . . . . . . Kick . | . . . . . . . . . Crush . | . . . . . . . . . Escape Stasis . | . . . . . . . . . Rewire . | . . . . . . . . . Trap . | . . . . . . . . . Miscellaneous . | . . . . . . . . . Route ------- -11/Scrapyard -10/Materials -10/Mines -10/Subcaves -8/Materials -7/Factory -6/Factory -5/Factory -5/Upper Caves History --------- Turn | Location | Event 2 | -11/Scrapyard | Met Revision 17 8 | -11/Scrapyard | Discovered new exit (range 15) 20 | -11/Scrapyard | Entered Materials 90 | -10/Materials | Discovered new exit (range 7) 137 | -10/Materials | Entered Mines 155 | -10/Mines | Found a damaged Exp. Sensor Array with a note attached 158 | -10/Mines | Found Prototype Device 159 | -10/Mines | Identified Exp. Sensor Array 174 | -10/Mines | Met a Derelict bent on vengeance 313 | -10/Mines | Build established: Mutant 424 | -10/Mines | Discovered new exit (range 5) 440 | -10/Mines | Entered Subcaves 448 | -10/Subcaves | Learned location of 1 exit from Materials 487 | -10/Subcaves | Shifting Twisted Machinery released Mak. Shrapnel Gun 520 | -10/Subcaves | Learned Materials emergency access door positions 530 | -10/Subcaves | Discovered new exit (range 9) 531 | -10/Subcaves | Learned location of Storage (-8) 534 | -10/Subcaves | Shifting Twisted Machinery released Sub. Power Source 537 | -10/Subcaves | Entered Materials 537 | -8/Materials | Evolved 4 slots: Utility x4 538 | -8/Materials | Identified exit to Factory 677 | -8/Materials | Core integrity fell below 50% 720 | -8/Materials | Core integrity fell below 20% 733 | -8/Materials | Entered Factory 733 | -7/Factory | Evolved 2 slots: Utility x2 919 | -7/Factory | Fabricated Hammer (x2) 1267 | -7/Factory | Core integrity fell below 50% 1295 | -7/Factory | Discovered new exit (range 15) 1302 | -7/Factory | Core integrity fell below 20% 1302 | -7/Factory | Entered another Factory area 1302 | -6/Factory | Evolved 2 slots: Utility x2 1453 | -6/Factory | Fabricated G-47 Trooper (x3) 1506 | -6/Factory | Fabricated Hammer? 1544 | -6/Factory | Lost 3 allies 1552 | -6/Factory | Core integrity fell below 50% 1580 | -6/Factory | Lost 4 parts (3u1w) 1582 | -6/Factory | Core integrity fell below 20% 1627 | -6/Factory | Discovered new exit (range 16) 1653 | -6/Factory | Entered another Factory area 1653 | -5/Factory | Evolved 2 slots: Utility x2 1673 | -5/Factory | Spotted B-75 Beast 1730 | -5/Factory | Core integrity fell below 50% 1778 | -5/Factory | Discovered new exit (range 17) 1838 | -5/Factory | Entered Upper Caves 1931 | -5/Upper Caves | Learned location of 1 exit from Proximity Caves 2059 | -5/Upper Caves | Core integrity fell below 20% 2077 | -5/Upper Caves | Destroyed by S-27 Virus with Autogun Last Messages --------------- Establishing remote squad link... No tasked assault squads found. Acquired Imp. Focal Shield. O-24 Administrator: "IFF HANDSHAKE FAILED. SECURING TERMINAL." LOCATION=UNKNOWN GOAL=ESCAPE Acquired 5 matter. Acquired derelict log, extracted data. Data stored: Proximity Caves exits (x1). Searching scrap... Found 0b10 Decoder Chip [Skirmisher]. Found 18 Matter. Acquired 18 matter. J8-FMP(k) breaks down the 0b10 Decoder Chip [Skirmisher]. Adv. Hacking Suite destroyed. Adv. Targeting Computer destroyed. Imp. Focal Shield destroyed. Imp. Melee Analysis Suite destroyed. Map ----- +----------------------------------------------------+ | ??????????????????????????## ##??????###### | | ?????????????????????????## #?????## | | ???????????????????????### ##????# ## | | ???????????????????????# #????# ### | | ???????????????????????? #????# ### | | ?????????????????????????# ####### ### | | ??????????????????????????# ## ######## | | ??????????????????????????# #????# | | ??????????????????????????# ##???# | | ?????????????????????????## ###?# | | ???????????????????????### ### | | ??????????????????????## ## ### | | ??????????????????????# ##?# | | ??????????????????????## #??# | | ???????????????????????#### ### ###?## | | ??????????????????????????#######?## ##???# | | ???????????????????????????????????# ##????# | | ???????????????????????????????????## #?????## | | ????????????????????????????????????# #??????## | | ?????????????????????????######?????# ##???????? | | ????????????????????????## ###???# #????????? | | ????????????????????????# s ##### #??####### | | ????????????????????????# s### ## #?## | | ????????????????????????# #### #?# | | ???????????????????????## #?## ##??# | | ???????????????????????#;@ #??#### ##???# | | ???????????????????????### #?????#####????## ## | | ?????????????????????????####???????????????#####? | | ?????????????????????????????????????????????????? | | ?????????????????????????????????????????????????? | | ?????????????????????????????????????????????????? | | ?????????????????????????????????????????????????? | | ?????????????????????????????????????????????????? | | ?????????????????????????????????????????????????? | | ?????????????????????????????????????????????????? | | ?????????????????????????????????????????????????? | | ?????????????????????????????????????????????????? | | ?????????????????????????????????????????????????? | | ?????????????????????????????????????????????????? | | ?????????????????????????????????????????????????? | | ?????????????????????????????????????????????????? | | ?????????????????????????????????????????????????? | | ?????????????????????????????????????????????????? | | ?????????????????????????????????????????????????? | | | | | | | | | | | | | +----------------------------------------------------+ Best States ------------- Heat Dissipation 59 Energy Generation 5 Energy Capacity 100 Matter Stores 300 Matter Capacity 300 Sight Range 16 Robot Scan Range 20 Terrain Scan Density 210 Resistance: KI 25 Utility Shielding 66 Phase Shifting 5 Evasion (%) 55 Targeting Accuracy 20 Melee Accuracy 12 Armor Integrity Analysis 30 Offensive Hacking 14 Trap Extractor Capacity 6 Item Schematics ----------------- Hammer | -8/Materials | Scanalyzed Robot Schematics ------------------ None Fabricated ------------ Hammer | x2 | -7/Factory G-47 Trooper | x3 | -6/Factory | Preloaded Hammer | x2 | -6/Factory Alien Tech Used ----------------- None Achievements -------------- None Challenges ------------ None Game ------ Seed MinesnifferAlphaAutocannon Manual? 0 Play Time 00:27:02 Cumulative 35.9 hours Start 2024.04.26 @ 22:20:52 End 2024.04.26 @ 22:54:33 Sessions 1 Manual Loads 0 Difficulty Rogue Special Mode None Game No. 55 Rogue 54 Adventurer 1 Explorer 0 Win Type - Total 0 Types 0/0/0/0/0/0/0/0/0 Lore% 34 Gallery% 38 Achievement% 31 Wizard Run 0 Options --------- Layout 1 ASCII 0 Keyboard 0 Movement Mouse Keybinds 0 Fullscreen 1 Font 24/Smallcaps Map View 50x40 Zoom Use 0% Tactical HUD 0 Map Filters NONE Filters NONE Steam 1 RUN: 15f2779d-95ac-4792-85cf-9ac5cb92aa9c